Cogmind - Beta 11.1 @@@ ROGUE MODE // 2022.07.02 @ 13:21:45 Player: Nilrath Result: Destroyed by G-50 Soldier with Heavy Laser Performance ------------- Evolutions (4) 2000 Regions Visited (9) 1800 Robots Destroyed (35) 175 Value Destroyed (1364) 1364 Prototype IDs (0) 0 Alien Tech Used (0) 0 Bonus (300) 300 TOTAL SCORE: 5639 Bonus ------- Aligned with FarCom 300 Cogmind --------- Core Integrity 0/850 Matter 266/300 Energy 13/100 System Corruption 0% Temperature Cool (9) Movement Core (250) Ox4 Location -6/Lower Caves Parts ------- > --- POWER (3) -------- (None) > --- PROPULSION (6) --- (None) > --- UTILITY (4) ------ Trap Scanner Weapon Cycler > --- WEAPON (2) ------- Heavy Plasma Cannon > --- INVENTORY (5) ---- (None) Peak State ------------ > --- POWER ------------ Light Nuclear Core > --- PROPULSION ------- Carbon-fiber Leg Carbon-fiber Leg Improved Titanium Leg Makeshift Leg > --- UTILITY ---------- Trap Scanner Transmission Jammer Improved Core Shielding Improved Shield Generator > --- WEAPON ----------- Heavy Ion Cannon Heavy Rocket Launcher > --- INVENTORY -------- Weapon Cycler Improved Core Shielding [Rating: 41] Favorites ----------- Power Light Ion Engine Engine Light Ion Engine Power Core Nuclear Core Propulsion Aluminum Leg Treads Improved Medium Treads Leg Aluminum Leg Wheel Wheel Flight Unit Cesium-ion Thruster Utility Transmission Jammer Device Transmission Jammer Storage Small Storage Unit Processor Visual Processing Unit Protection Improved Core Shielding Weapon Advanced Assault Cannon Energy Gun Gatling Laser Energy Cannon Heavy Ion Cannon Ballistic Gun Light Assault Rifle Ballistic Cannon Advanced Assault Cannon Launcher Grenade Launcher Special Weapon Remote Datajack Build | -11 -10 -10 -10 -9 -8 -7 -6 -6 -6 ------- Run | Scr Mat Min Exi Min Mat Fac Fac Low Low Slots Evolved 8 | . . . . . 4 2 2 . . Power 2 | . . . . . . 2 . . . Propulsion 4 | . . . . . 4 . . . . Utility 2 | . . . . . . . 2 . . Weapon . | . . . . . . . . . . Parts Attached 64 | 7 6 . 1 2 7 23 5 6 7 Power 6 | 1 1 . 1 . . 3 . . . Engine 3 | 1 1 . 1 . . . . . . Core 3 | . . . . . . 3 . . . Reactor . | . . . . . . . . . . Propulsion 19 | 2 1 . . . 3 8 1 3 1 Treads 3 | . . . . . . . . 2 1 Leg 14 | 2 1 . . . 2 7 1 1 . Wheel 1 | . . . . . . 1 . . . Hover . | . . . . . . . . . . Flight 1 | . . . . . 1 . . . . Utility 14 | 1 1 . . . 2 4 3 1 2 Device 8 | . . . . . 1 3 2 1 1 Storage 3 | 1 . . . . 1 1 . . . Processor 1 | . 1 . . . . . . . . Hackware . | . . . . . . . . . . Protection 2 | . . . . . . . 1 . 1 Artifact . | . . . . . . . . . . Weapon 25 | 3 3 . . 2 2 8 1 2 4 Energy Gun 4 | 1 . . . . 1 1 . 1 . Energy Cannon 5 | . . . . . . 1 1 . 3 Ballistic Gun 6 | 2 1 . . . 1 1 . . 1 Ballistic Cannon 5 | . 1 . . . . 3 . 1 . Launcher 4 | . 1 . . 2 . 1 . . . Special Weapon 1 | . . . . . . 1 . . . Impact Weapon . | . . . . . . . . . . Slashing Weapon . | . . . . . . . . . . Piercing Weapon . | . . . . . . . . . . Special Melee Weapon . | . . . . . . . . . . Unidentified Prototypes . | . . . . . . . . . . Parts Lost 31 | . . . . . 11 3 1 5 11 Power 3 | . . . . . 1 1 . 1 . Propulsion 11 | . . . . . 3 2 1 3 2 Utility 8 | . . . . . 3 . . 1 4 Weapon 9 | . . . . . 4 . . . 5 Highest Loss Streak 11 | . . . . . 10 1 1 5 11 To Critical Strikes . | . . . . . . . . . . Average Slot Usage (%) 68 | . 87 100 95 100 48 65 65 48 45 Engine 3 | . 14 14 9 14 5 . . . . Core 2 | . . . . . . 5 6 1 . Leg 22 | . 28 28 28 28 17 29 20 8 . Device 9 | . . . . . 1 13 19 16 18 Storage 4 | . 14 14 14 14 7 . . . . Processor 3 | . 2 14 14 14 6 . . . . Protection 1 | . . . . . . . 5 6 5 Energy Gun 1 | . . . . . . 3 . 1 5 Energy Cannon 2 | . . . . . . 2 5 4 . Ballistic Cannon 7 | . 11 14 14 14 . 7 . 1 5 Launcher 5 | . 5 14 14 14 10 . 6 4 . Naked Turns 55 | . . . . . 55 . . . . Heaviest Build 29 | 13 14 14 14 15 15 25 29 29 25 Greatest Support 82 | 3 20 20 20 20 33 82 60 70 58 Greatest Overweight (x) 4 | 4 4 . . . 2 . . 1 4 Average Overweight (x) . | 3 . . . . . . . . . Largest Inventory Capacity 35 | 8 8 8 8 8 8 35 5 5 5 Average Capacity 6 | 7 8 8 8 8 7 5 5 5 5 Most Carried 8 | 4 7 2 6 8 8 5 5 5 3 Average Carried 3 | 2 2 2 3 6 6 4 2 2 2 Final Capacity 8 | 8 8 8 8 8 5 5 5 5 5 Final Carried 7 | 4 2 2 6 7 5 5 2 3 . Class Distribution -------------------- 91% | Mutant 8% | Derelict-Mutant Dominant Class ---------------- Mutant | -10/Materials Mutant | -10/Mines Mutant | -10/Exiles Mutant | -9/Mines Mutant | -8/Materials Mutant | -7/Factory Mutant | -6/Factory Mutant | -6/Lower Caves Derelict-Mutant | -6/Lower Caves Resources | -11 -10 -10 -10 -9 -8 -7 -6 -6 -6 ----------- Run | Scr Mat Min Exi Min Mat Fac Fac Low Low Matter Collected 1419 | 260 161 . . 58 . 503 . 385 52 Remotely . | . . . . . . . . . . Salvage Created 1082 | . 295 . . . 27 486 . 163 111 Parts 60 | . 25 . . . 3 22 . 8 2 Haulers Intercepted . | . . . . . . . . . . Recyclers Shooed 4 | . . . . . 3 1 . . . Parts Field Recycled . | . . . . . . . . . . Retrieved Matter . | . . . . . . . . . . Parts Self-Destructed 10 | . . . . . . . . 6 4 Prevented 6 | . . . . . . . . 2 4 Kills | -11 -10 -10 -10 -9 -8 -7 -6 -6 -6 ------- Run | Scr Mat Min Exi Min Mat Fac Fac Low Low Combat Hostiles Destroyed 27 | . 7 . . . 2 9 1 6 2 Guns 6 | . 3 . . . . 2 . . 1 Cannons 12 | . 1 . . . . 7 . 3 1 AOE 9 | . 3 . . . 2 . 1 3 . Classes Destroyed 12 | . 6 . . . 2 2 . 2 . Builder 2 | . 2 . . . . . . . . Tunneler 1 | . 1 . . . . . . . . Recycler 2 | . 1 . . . . 1 . . . Mechanic 1 | . . . . . . 1 . . . Operator 1 | . . . . . 1 . . . . Watcher 1 | . 1 . . . . . . . . Swarmer 3 | . 3 . . . . . . . . Grunt 15 | . 4 . . . 1 6 . 3 1 Duelist 1 | . . . . . . . . 1 . Sentry 4 | . . . . . 1 1 1 . 1 Programmer 4 | . . . . . . 2 . 2 . Decomposer 1 | . . . . . . . . 1 . Best Kill Streak 9 | . 9 . . . 2 2 1 6 1 Combat Bots Only 5 | . 4 . . . 2 2 1 5 1 Max Kills in Single Turn 2 | . 2 . . . 1 1 1 2 1 Gunslinging . | . . . . . . . . . . Exploded 1 | . 1 . . . 1 . 1 1 . Melee . | . . . . . . . . . . Uniques/NPCs Destroyed . | . . . . . . . . . . Combat | -11 -10 -10 -10 -9 -8 -7 -6 -6 -6 -------- Run | Scr Mat Min Exi Min Mat Fac Fac Low Low Damage Taken 5007 | . 251 . . . 1378 907 118 416 1937 Core 1564 | . 13 . . . 548 145 15 54 789 Absorbed by Shields 98 | . . . . . . . 54 44 . Redirected to Shielding 202 | . . . . . . . 4 21 177 Core Remaining (%) 68 | 100 . . . 94 . 79 . . . Volleys Fired 115 | . 29 . . . 29 24 7 12 14 Largest 2 | . 2 . . . 2 2 1 2 2 Hottest 180 | . 65 . . . 63 128 39 104 180 Shots Fired 191 | . 52 . . . 41 43 7 24 24 Gun 85 | . 28 . . . 27 18 . . 12 Cannon 67 | . 19 . . . . 24 . 12 12 Launcher 38 | . 5 . . . 14 . 7 12 . Special 1 | . . . . . . 1 . . . Kinetic 101 | . 47 . . . 20 23 . . 11 Thermal 50 | . . . . . 7 18 . 12 13 Explosive 38 | . 5 . . . 14 . 7 12 . Electromagnetic 1 | . . . . . . 1 . . . Robot Hit Streak 10 | . 5 . . . 7 10 4 3 7 Robot Miss Streak 7 | . 7 . . . 3 7 1 3 3 Penetration Max . | . . . . . . . . . . Secondary Targets 2 | . 2 . . . . . . . . Max Gunslinging Chain 1 | . 1 . . . . . . . . Shots Hit Robots 109 | . 14 . . . 26 33 6 10 20 Core Hits 81 | . 12 1 . . 14 22 5 17 10 Critical Kills . | . . . . . . . . . . Critical Parts Destroyed 1 | . . . . . 1 . . . . Critical Strikes 2 | . . . . . 1 . . . 1 Burn 1 | . . . . . . . . . 1 Destroy 1 | . . . . . 1 . . . . Melee Attacks . | . . . . . . . . . . Impact . | . . . . . . . . . . Slashing . | . . . . . . . . . . Piercing . | . . . . . . . . . . Sneak Attacks . | . . . . . . . . . . Combat Hostiles . | . . . . . . . . . . Follow-up Attacks . | . . . . . . . . . . Damage Inflicted 3401 | . 593 3 . . 462 776 186 899 482 Guns 711 | . 62 . . . 148 290 . . 211 Cannons 993 | . 82 . . . . 471 . 171 269 Explosions 1606 | . 449 . . . 262 . 186 709 . Melee . | . . . . . . . . . . Ramming 91 | . . 3 . . 52 15 . 19 2 Kinetic 947 | . 144 . . . 103 471 . . 229 Thermal 966 | . 209 . . . 45 290 . 171 251 Explosive 1397 | . 240 . . . 262 . 186 709 . Electromagnetic . | . . . . . . . . . . Impact . | . . . . . . . . . . Slashing . | . . . . . . . . . . Piercing . | . . . . . . . . . . Highest Corruption 8 | . . . . . 8 2 . . . Average Corruption 1 | . . . . . 3 1 . . . Corruption Purged . | . . . . . . . . . . Corruption Blocked . | . . . . . . . . . . Effects 4 | . . . . . 1 3 . . . Message Errors 1 | . . . . . 1 . . . . Matter Fused 1 | . . . . . . 1 . . . Heat Flow Errors 1 | . . . . . . 1 . . . Data Loss (major) 1 | . . . . . . 1 . . . Overload Shots . | . . . . . . . . . . Overflow Damage 59 | . 34 . . . 22 . . 3 . Projectiles . | . . . . . . . . . . Explosions 56 | . 34 . . . 22 . . . . Melee 3 | . . . . . . . . 3 . Knockbacks 11 | . 1 . . . 1 3 . . 6 Impact 2 | . . . . . 1 1 . . . Kinetic 9 | . 1 . . . . 2 . . 6 Secondary . | . . . . . . . . . . Self-Inflicted Damage 275 | . . . . . 206 . . 68 1 Shots 10 | . . . . . 9 . . 1 . Rammed 13 | . . . . . 6 . . 5 2 Targets Rammed 20 | . . 1 . . 9 3 . 5 2 Kicked 7 | . . 1 . . 3 3 . . . Crushed . | . . . . . . . . . . Highest Temperature 150 | . 30 . . . 17 99 1 123 150 Average Temperature 36 | . 13 . . . 11 33 1 47 58 Received Heat Transfer 1712 | . 15 . . . 378 447 32 111 729 Siege Activations . | . . . . . . . . . . Robots Corrupted . | . . . . . . . . . . Combat Hostiles . | . . . . . . . . . . Parts Fried . | . . . . . . . . . . Impact Corruptions 3 | . . . . . . . . 3 . Robots Melted . | . . . . . . . . . . Combat Hostiles . | . . . . . . . . . . Parts Melted . | . . . . . . . . . . Heat Transferred 1629 | . 150 . . . 100 650 . 222 507 Parts Sabotaged . | . . . . . . . . . . Parts Stolen . | . . . . . . . . . . Parts Stripped . | . . . . . . . . . . Power Chain Reactions . | . . . . . . . . . . Missiles Intercepted . | . . . . . . . . . . Alert | -11 -10 -10 -10 -9 -8 -7 -6 -6 -6 ------- Run | Scr Mat Min Exi Min Mat Fac Fac Low Low Peak Influence 308 | . 308 42 . . 212 133 118 . . Initial 45 | . . 42 . . . 6 45 . . Average 56 | . 116 42 . . 97 41 61 . . Maximum Alert Level 1 | . 1 . . . 1 . . . . Low Security (%) 97 | 100 80 100 . 100 96 100 100 . . Level 1 2 | . 19 . . . 3 . . . . Level 2 . | . . . . . . . . . . Level 3 . | . . . . . . . . . . Level 4 . | . . . . . . . . . . Level 5 . | . . . . . . . . . . High Security . | . . . . . . . . . . Max Security . | . . . . . . . . . . Squads Dispatched 11 | . 2 . . . 5 4 . . . Investigation 1 | . . . . . . 1 . . . Extermination 2 | . . . . . . 2 . . . Reinforcement 5 | . 2 . . . 2 1 . . . Assault . | . . . . . . . . . . Garrison 3 | . . . . . 3 . . . . Intercept . | . . . . . . . . . . Searches Triggered . | . . . . . . . . . . Construction Impeded 1 | . . . . . 1 . . . . Haulers Reinforced 1 | . . . . . . 1 . . . Active Scanning Responses . | . . . . . . . . . . Cargo Convoy Interrupts . | . . . . . . . . . . Stealth | -11 -10 -10 -10 -9 -8 -7 -6 -6 -6 --------- Run | Scr Mat Min Exi Min Mat Fac Fac Low Low Distress Signals 3 | . 1 . . . 1 1 . . . Communications Jammed . | . . . . . . . . . . Distress Signals . | . . . . . . . . . . Times Spotted 65 | . 12 . . . 22 16 1 6 8 Peak Tracking Total 10 | . 5 . . . 10 3 1 4 7 Tactical Retreats 5 | . . . . . 2 3 . . . Traps | -11 -10 -10 -10 -9 -8 -7 -6 -6 -6 ------- Run | Scr Mat Min Exi Min Mat Fac Fac Low Low Traps Triggered 3 | . . . . . . 3 . . . Indirectly . | . . . . . . . . . . Trap Hack Attempts . | . . . . . . . . . . Triggered . | . . . . . . . . . . Disarmed . | . . . . . . . . . . Reprogrammed . | . . . . . . . . . . Reused . | . . . . . . . . . . Traps Extracted . | . . . . . . . . . . Installed . | . . . . . . . . . . Triggered 4 | . . . . . . . . 2 2 Machines | -11 -10 -10 -10 -9 -8 -7 -6 -6 -6 ---------- Run | Scr Mat Min Exi Min Mat Fac Fac Low Low Machines Disabled 8 | . 4 . . . 2 1 . . 1 Max in Single Turn 2 | . 2 . . . 1 1 . . 1 Machines Sabotaged . | . . . . . . . . . . Garrisons Compromised . | . . . . . . . . . . Overloaded Fab Kills . | . . . . . . . . . . Hacking | -11 -10 -10 -10 -9 -8 -7 -6 -6 -6 --------- Run | Scr Mat Min Exi Min Mat Fac Fac Low Low Machines Accessed 10 | . . . 4 . . 6 . . . Terminals 4 | . . . . . . 4 . . . Fabricators 1 | . . . . . . 1 . . . Repair Stations 1 | . . . . . . 1 . . . Recycling Units . | . . . . . . . . . . Scanalyzers . | . . . . . . . . . . Garrison Access . | . . . . . . . . . . Total Hacks 30 | . . . 18 . . 12 . . . Successful 23 | . . . 18 . . 5 . . . Failed 7 | . . . . . . 7 . . . Catastrophic 3 | . . . . . . 3 . . . Database Lockouts . | . . . . . . . . . . Manual 4 | . . . 3 . . 1 . . . Terminals 6 | . . . . . . 6 . . . Fabricators 2 | . . . . . . 2 . . . Repair Stations 4 | . . . . . . 4 . . . Recycling Units . | . . . . . . . . . . Scanalyzers . | . . . . . . . . . . Garrison Access . | . . . . . . . . . . Terminal Hacks 21 | . . . 18 . . 3 . . . Record 20 | . . . 18 . . 2 . . . Open DSF 1 | . . . . . . 1 . . . Fabricator Hacks 1 | . . . . . . 1 . . . Build 1 | . . . . . . 1 . . . Repair Station Hacks 1 | . . . . . . 1 . . . Scan Component 1 | . . . . . . 1 . . . Recycling Unit Hacks . | . . . . . . . . . . Scanalyzer . | . . . . . . . . . . Garrison Access Hacks . | . . . . . . . . . . Unauthorized Hacks . | . . . . . . . . . . Terminals . | . . . . . . . . . . Fabricators . | . . . . . . . . . . Repair Stations . | . . . . . . . . . . Recycling Units . | . . . . . . . . . . Scanalyzers . | . . . . . . . . . . Garrison Access . | . . . . . . . . . . Data Cores Recovered . | . . . . . . . . . . Used . | . . . . . . . . . . Hacking Detections 4 | . . . . . . 4 . . . Full Trace Events 1 | . . . . . . 1 . . . Feedback Events . | . . . . . . . . . . Feedback Blocked . | . . . . . . . . . . Robot Schematics Acquired . | . . . . . . . . . . Robots Built . | . . . . . . . . . . Authchips . | . . . . . . . . . . Time . | . . . . . . . . . . Total Robot Build Rating . | . . . . . . . . . . Part Schematics Acquired . | . . . . . . . . . . Parts Built 2 | . . . . . . 2 . . . Authchips . | . . . . . . . . . . Time 47 | . . . . . . 47 . . . Total Part Build Rating 10 | . . . . . . 10 . . . Parts Repaired . | . . . . . . . . . . Time . | . . . . . . . . . . Parts Recycled . | . . . . . . . . . . Recycled Matter . | . . . . . . . . . . Retrieved Matter . | . . . . . . . . . . Retrieved Components . | . . . . . . . . . . Parts Scanalyzed . | . . . . . . . . . . Part Schematics Acquired . | . . . . . . . . . . Parts Damaged . | . . . . . . . . . . Bothacking | -11 -10 -10 -10 -9 -8 -7 -6 -6 -6 ------------ Run | Scr Mat Min Exi Min Mat Fac Fac Low Low Used RIF Installer . | . . . . . . . . . . Robots Hacked 1 | . . . . . . 1 . . . Non-combat . | . . . . . . . . . . Combat 1 | . . . . . . 1 . . . Robot Hacks Applied 1 | . . . . . . 1 . . . parse_system 1 | . . . . . . 1 . . . Relay Couplers Released . | . . . . . . . . . . Fabnet Peak Effective % . | . . . . . . . . . . Robots Rewired . | . . . . . . . . . . Allies Hacked . | . . . . . . . . . . Hacks Repelled . | . . . . . . . . . . Allies | -11 -10 -10 -10 -9 -8 -7 -6 -6 -6 -------- Run | Scr Mat Min Exi Min Mat Fac Fac Low Low Total Allies . | . . . . . . . . . . Largest Group . | . . . . . . . . . . Highest-Rated Group . | . . . . . . . . . . Highest-Rated Ally . | . . . . . . . . . . Total Orders . | . . . . . . . . . . Ally Attacks . | . . . . . . . . . . Total Damage . | . . . . . . . . . . Kills . | . . . . . . . . . . Allies Corrupted . | . . . . . . . . . . Allies Melted . | . . . . . . . . . . Intel | -11 -10 -10 -10 -9 -8 -7 -6 -6 -6 ------- Run | Scr Mat Min Exi Min Mat Fac Fac Low Low Robot Analysis Total . | . . . . . . . . . . Derelict Logs Recovered . | . . . . . . . . . . Drone Launches . | . . . . . . . . . . Drone Recoveries . | . . . . . . . . . . Exploration | -11 -10 -10 -10 -9 -8 -7 -6 -6 -6 ------------- Run | Scr Mat Min Exi Min Mat Fac Fac Low Low Turns Passed 6050 | 152 440 204 1053 128 452 1967 363 842 449 Spaces Moved 4278 | 69 266 168 868 99 408 1349 240 562 249 Core 323 | 69 19 . . . 211 . . . 24 Treads 326 | . . . . . . . . 101 225 Legs 3629 | . 247 168 868 99 197 1349 240 461 . Wheels . | . . . . . . . . . . Hover . | . . . . . . . . . . Flight . | . . . . . . . . . . Fastest Speed 50 | 50 120 120 120 120 50 120 120 123 50 Average Speed 123 | 203 129 120 120 120 86 121 120 135 154 Slowest Speed 250 | 250 250 120 120 120 150 130 123 200 250 Overloaded Moves . | . . . . . . . . . . Propulsion Burnouts . | . . . . . . . . . . Robots Hopped . | . . . . . . . . . . Cave-ins Triggered . | . . . . . . . . . . Exploration Rate (%) 33 | 5 32 38 94 19 21 18 5 61 42 Regions Visited 9 Branch Regions 5 Pre-discovered Areas 1 | . . . 1 . . . . . . Known Exits Taken . | . . . . . . . . . . Unknown Exits Taken 9 | 1 1 1 1 1 1 1 1 1 . Scrap Searched 13 | . . . . 1 . . . 12 . Spaces Dug . | . . . . . . . . . . Terrain Destroyed 253 | . 16 . . . 86 3 58 89 1 Melee . | . . . . . . . . . . Projectile 7 | . . . . . . 3 . 3 1 AOE 246 | . 16 . . . 86 . 58 86 . Terrain Rammed . | . . . . . . . . . . Walls Destroyed . | . . . . . . . . . . Machines Disabled . | . . . . . . . . . . Actions | -11 -10 -10 -10 -9 -8 -7 -6 -6 -6 --------- Run | Scr Mat Min Exi Min Mat Fac Fac Low Low Total 4861 | 79 317 170 882 108 465 1629 307 615 289 Wait 313 | . 5 2 3 6 9 195 54 23 16 Move 4269 | 68 265 167 867 98 407 1348 239 561 249 Hop . | . . . . . . . . . . Pick Up 27 | 3 3 . 6 1 2 10 . 1 1 Fast Attach 39 | 7 1 . . . 5 17 1 5 3 Attach 24 | . 5 . 1 1 2 6 4 1 4 Detach 21 | 1 4 . 1 1 . 9 1 4 . Swap 1 | . . . . 1 . . . . . Drop 31 | . 5 . 4 . 2 16 1 3 . Fire 115 | . 29 . . . 29 24 7 12 14 Melee . | . . . . . . . . . . Ram 8 | . . . . . 6 . . . 2 Kick 7 | . . 1 . . 3 3 . . . Crush 5 | . . . . . . . . 5 . Escape Stasis 1 | . . . . . . 1 . . . Rewire . | . . . . . . . . . . Trap . | . . . . . . . . . . Miscellaneous . | . . . . . . . . . . Route ------- -11/Scrapyard -10/Materials (discovered 2 exits: [*Min x2]) -10/Mines -10/Exiles (discovered 2 exits: [*Min x2]) -9/Mines -8/Materials -7/Factory -6/Factory -6/Lower Caves -6/Lower Caves History --------- Turn | Location | Event 10 | -11/Scrapyard | Discovered new exit (range 15) 153 | -11/Scrapyard | Entered Materials 316 | -10/Materials | Build established: Mutant 516 | -10/Materials | Discovered new exit (range 17) 523 | -10/Materials | Discovered new exit (range 8) 593 | -10/Materials | Entered Mines 789 | -10/Mines | Deemed a non-threat by the Exiles lab entrance 790 | -10/Mines | Discovered new exit (range 5) 797 | -10/Mines | Entered Exiles 830 | -10/Exiles | Discovered new exit (range 17) 848 | -10/Exiles | Met 8R-AWN 871 | -10/Exiles | Met EX-HEX 928 | -10/Exiles | Met EX-BIN 955 | -10/Exiles | Aligned with FarCom system 956 | -10/Exiles | Given EX-Vault access code 1011 | -10/Exiles | Met EX-DEC 1025 | -10/Exiles | Learned location of Zion (-7) 1142 | -10/Exiles | Discovered new exit (range 10) 1564 | -10/Exiles | Visited The Gauntlet 1850 | -10/Exiles | Entered Mines 1948 | -9/Mines | Discovered new exit (range 9) 1964 | -9/Mines | Received a Rocket Launcher from a helpful Derelict 1978 | -9/Mines | Entered Materials 1978 | -8/Materials | Evolved 4 slots: Propulsion x4 2229 | -8/Materials | Garrison activated, responded to threat 2295 | -8/Materials | Core integrity fell below 50% 2329 | -8/Materials | Lost 10 parts (1p3n2u4w) 2356 | -8/Materials | Core integrity fell below 20% 2425 | -8/Materials | Discovered new exit (range 8) 2430 | -8/Materials | Entered Factory 2430 | -7/Factory | Evolved 2 slots: Power x2 2701 | -7/Factory | Fabricated Imp. Core Shielding (x2) 4368 | -7/Factory | Discovered new exit (range 5) 4397 | -7/Factory | Entered another Factory area 4397 | -6/Factory | Evolved 2 slots: Utility x2 4690 | -6/Factory | Discovered new exit (range 15) 4760 | -6/Factory | Entered Lower Caves 4978 | -6/Lower Caves | Lost 5 parts (1p3n1u) 5548 | -6/Lower Caves | Discovered new exit (range 12) 5602 | -6/Lower Caves | Entered another Lower Caves area 5733 | -6/Lower Caves | Build established: Derelict-Mutant 5962 | -6/Lower Caves | Attracted the attention of an 0b10 base 6011 | -6/Lower Caves | Core integrity fell below 50% 6040 | -6/Lower Caves | Core integrity fell below 20% 6051 | -6/Lower Caves | Destroyed by G-50 Soldier with Heavy Laser Last Messages --------------- 06005_ Machine disabled. 06006_ Destroyed Lgt. Nuclear Core. 06008_ Coil Gun destroyed. 06010_ Autogun fries itself beyond repair. 06011_ Lgt. Nuclear Core fries itself beyond repair. 06012_ Storage Shell breached. 06016_ S-27 Virus destroyed. 06016_ Transmission Jammer destroyed. 06017_ Slammed into G-50 Soldier. 06022_ Acquired Hvy. Plasma Cannon. 06038_ Hvy. Plasma Cannon destroyed. 06040_ Critical hit (Burn: +37). 06043_ Acquired Hvy. Plasma Cannon. 06045_ Imp. Core Shielding destroyed. 06045_ Hvy. Plasma Cannon destroyed. [Achievement: First Step to Greatness] Important note for Steam players: Cogmind player global achievement rates displayed by Steam are all significantly underreported, in some cases by a huge margin, due to how they are calculated by Valve. [Achievement: 5k Club] Map ----- +----------------------------------------------------+ | ?????????????????????????????????????????????????? | | ?????????????????????????????????????????????????? | | ????????????????????????????????????????????????## | | ????????????????????????????????????????????????# | | ????????????????????????????????????????????????? | | ?????????????????????????????????????????????????# | | ?????????????????????????????????????????????????# | | ????????????????????????????????????????????????## | | ????????????????????????????????##?????????????## | | ??????????????????????????????? $??????######## | | ??????????????????????????????? ????### | | ???????????????????????????????# #??## | | ???????????????????????????????# #??# | | ???????????????????????????????# #??# | | ???????????????????????????????# #??# # | | ???????????????????????????????# #??# # | | ????????????????????###????????# #??# | | ????????????????????# #????????# #??# ## #### | | ??????????????????###"#####????# #?## #### ###??? | | ?????????????????## ## #????# ### #??###????? | | ?????????????????# ##???# #?????????? | | ??????????????#### ##### ##?????????? | | ?????????????## ## #??????????? | | ?????????????# ## #??????????? | | ????????????# ####+###### ## #??????????? | | ???????????# #" g@g# ##??????????? | | ???????????# #" "gg; #???????????? | | ???????????# # #" %"" # ### #???????????? | | ??????????# #$ #" + ##?###???????????? | | ??????????# ? #" # ##????????????????? | | ??????????###? + [% # ##?????????????????? | | ?????????????? # # #??????????????????? | | ?????????????# #" " # #??????????????????? | | ?????????????# #"""" """# #??????????????????? | | ?????????????# ########### #??????????????????? | | ?????????????# ?????????? #??????????????????? | | ?????????????## ?????????? #??????????????????? | | ??????????????? ?????????#####??????????????????? | | ??????????????? ????????????????????????????????? | | ?????????????????????????????????????????????????? | | ?????????????????????????????????????????????????? | | ?????????????????????????????????????????????????? | | ?????????????????????????????????????????????????? | | ?????????????????????????????????????????????????? | | ?????????????????????????????????????????????????? | | ?????????????????????????????????????????????????? | | ?????????????????????????????????????????????????? | | ?????????????????????????????????????????????????? | | ?????????????????????????????????????????????????? | | ?????????????????????????????????????????????????? | +----------------------------------------------------+ Best States ------------- Heat Dissipation 37 Energy Generation 14 Energy Capacity 250 Matter Stores 300 Matter Capacity 500 Sight Range 18 Terrain Scan Density 10 Jamming Range 12 Additional Mass Support 9 Core Shielding 30 Evasion (%) 55 Recoil Reduction 2 Item Schematics ----------------- None Robot Schematics ------------------ None Fabricated ------------ Imp. Core Shielding | x2 | -7/Factory | Preloaded Alien Tech Used ----------------- None Achievements -------------- 5k Club Close Call Crack Shot First Step to Greatness Just What I Needed Librarian Made in Tau Ceti IV Novice Programmer One Hack Too Far Remodeling Storm Trooper Tourist Troublemaker Uninvited Guest Challenges ------------ None Game ------ Seed WeaponSurgeAirjet Manual? 0 Play Time 01:55:40 Cumulative 3.8 hours Start 2022.06.07 @ 13:27:03 End 2022.07.02 @ 13:21:45 Sessions 14 Manual Loads 0 Difficulty Rogue Special Mode None Game No. 1 Rogue 1 Adventurer 0 Explorer 0 Win Type - Total 0 Types 0/0/0/0/0/0/0/0/0 Lore% 4 Gallery% 5 Achievement% 6 Wizard Run 0 Options --------- ASCII 0 Keyboard 1 Movement Numpad Keybinds 0 Fullscreen 1 Font 18/Smallcaps Map View 76x50 Tactical HUD 1 Map Filters NONE Filters NONE Steam 1 RUN: 49124c8d-b9f0-4a3c-ba0c-0862910493ed